Cogmind - Beta 16 *** ADVENTURER MODE // 2025.11.12 @ 20:34:37 Player: erkyp3rky Result: Self-destructed Performance ------------- Evolutions (4) 2000 Regions Visited (5) 1000 Robots Destroyed (68) 340 Value Destroyed (2027) 2027 Prototype IDs (5) 100 Alien Tech Used (0) 0 Bonus (-92) -92 TOTAL SCORE: 5375 Bonus ------- Friendly Fire -92 Cogmind --------- Core Integrity 787/850 Matter 196/300 Energy 220/220 System Corruption 0% Temperature Cool (0) Movement Walking (115) Location -6/Factory Parts ------- > --- POWER (2) -------- Light Fission Core Light Fission Core > --- PROPULSION (4+3) - Aluminum Leg (+) Improved Carbon-fiber Leg (+) Improved Titanium Leg Arachnoskeleton > --- UTILITY (7) ------ Large Storage Unit Advanced Sensor Array Improved Signal Interpreter Improved Terrain Scan Processor Matter Filter > --- WEAPON (2) ------- Gauss Rifle Spear > --- INVENTORY (15) --- Nuclear Core High-capacity Matter Pod (7) Matter Compressor (0) Improved Sensor Array Improved Medium Armor Plating Layered Light Armor Plating Improved Trap Extractor (0/6) Gauss Rifle Missile Launcher Dirty Datajack (20) Peak State ------------ > --- POWER ------------ Light Fission Core Light Fission Core > --- PROPULSION ------- Aluminum Leg Improved Carbon-fiber Leg Improved Titanium Leg Arachnoskeleton > --- UTILITY ---------- Large Storage Unit Advanced Sensor Array Improved Signal Interpreter Improved Terrain Scanner Improved Terrain Scan Processor Matter Filter Medium Armor Plating > --- WEAPON ----------- Gauss Rifle Gauss Rifle > --- INVENTORY -------- Nuclear Core High-capacity Matter Pod Matter Compressor Improved Sensor Array Improved Medium Armor Plating Layered Light Armor Plating Improved Trap Extractor Missile Launcher Dirty Datajack Spear [Rating: 72] Favorites ----------- Power Light Ion Engine Engine Light Ion Engine Power Core Nuclear Core Propulsion Cargo Legs Treads Light Treads Leg Cargo Legs Wheel Subdweller Monowheel Utility Large Storage Unit Device Subdweller Optics Storage Large Storage Unit Processor Targeting Computer Hackware Hacking Suite Protection Medium Armor Plating Weapon Gauss Rifle Energy Gun Heavy Riot Gun Energy Cannon Beam Cannon Ballistic Gun Gauss Rifle Launcher Missile Launcher Special Weapon Flamer Slashing Weapon Makeshift Sword Piercing Weapon Spear Special Melee Weapon Dirty Datajack Build | -11 -10 -10 -8 -7 -6 ------- Run | Yrd Mat Sub Mat Fac Fac Slots Evolved 8 | . . . 4 2 2 Power 1 | . . . . . 1 Propulsion 2 | . . . 2 . . Utility 5 | . . . 2 2 1 Weapon . | . . . . . . Parts Attached 66 | 9 2 18 11 13 13 Power 8 | 1 . 4 1 . 2 Engine 5 | 1 . 4 . . . Core 3 | . . . 1 . 2 Reactor . | . . . . . . Propulsion 10 | 4 . 2 1 2 1 Treads 2 | 2 . . . . . Leg 7 | 2 . 1 1 2 1 Wheel 1 | . . 1 . . . Hover . | . . . . . . Flight . | . . . . . . Utility 25 | 2 2 4 5 7 5 Device 11 | 1 . 3 1 2 4 Storage 2 | 1 1 . . . . Processor 6 | . 1 . . 4 1 Hackware 1 | . . . 1 . . Protection 5 | . . 1 3 1 . Artifact . | . . . . . . Weapon 23 | 2 . 8 4 4 5 Energy Gun 3 | . . . 1 . 2 Energy Cannon 1 | . . 1 . . . Ballistic Gun 11 | 2 . 4 2 2 1 Ballistic Cannon . | . . . . . . Launcher 4 | . . 1 1 2 . Special Weapon 1 | . . 1 . . . Impact Weapon . | . . . . . . Slashing Weapon 1 | . . 1 . . . Piercing Weapon 1 | . . . . . 1 Special Melee Weapon 1 | . . . . . 1 Unidentified Prototypes 3 | . . 1 2 . . Parts Lost 11 | . . 7 . 2 2 Power 2 | . . 2 . . . Propulsion 1 | . . 1 . . . Utility 5 | . . 1 . 2 2 Weapon 3 | . . 3 . . . Highest Loss Streak 2 | . . 2 . 2 2 To Critical Strikes 1 | . . 1 . . . Average Backups 5 | . 1 4 8 7 8 Power . | . . . . 1 1 Propulsion . | . . . . . . Utility 2 | . . 1 1 3 4 Weapon 2 | . . 2 4 2 1 Tool/Special . | . . . . . . Unused Backups 10 | . 1 . 2 . 7 Power 1 | . . . . . 1 Propulsion . | . . . . . . Utility 8 | . 1 . 1 . 6 Weapon 1 | . . . 1 . . Tool/Special . | . . . . . . Average Slot Usage (%) 75 | . 99 78 53 58 79 Engine 8 | . 14 11 . . . Core 2 | . . . 6 6 9 Treads 4 | . 28 2 . . . Leg 9 | . . 9 7 15 20 Device 10 | . 13 12 . 1 14 Storage 10 | . 14 12 7 6 5 Processor 2 | . . 1 . 3 12 Hackware 1 | . . . 3 4 . Protection 3 | . . 1 12 6 5 Energy Cannon 1 | . . 2 . . . Ballistic Gun 15 | . 28 15 12 11 10 Slashing Weapon 3 | . . 5 . . . Peak Build Rating 72 | 7 7 32 42 51 72 Average Rating 30 | 5 6 25 39 45 64 On Entrance 20 | . 7 7 17 42 51 Avg Prop Armor Cover (%) . | . . . . . . Naked Turns . | . . . . . . Heaviest Build 56 | 13 28 35 52 45 56 Greatest Support 98 | 40 40 55 50 80 98 Greatest Overweight (x) 10 | 3 . 10 1 . . Average Overweight (x) . | . . . . . . Largest Inventory Capacity 15 | 8 15 15 15 15 15 Average Capacity 14 | 7 10 15 15 15 15 Most Carried 13 | . 3 13 11 10 10 Average Carried 5 | . 1 5 8 7 8 Final Capacity 15 | 8 15 15 15 15 15 Final Carried 13 | . 2 13 8 10 10 Class Distribution -------------------- 73% | Mutant 16% | Hacker-Mutant 9% | Skirmisher Dominant Class ---------------- Mutant | -10/Materials Mutant | -10/Subcaves Hacker-Mutant | -8/Materials Hacker-Mutant | -7/Factory Skirmisher | -6/Factory Resources | -11 -10 -10 -8 -7 -6 ----------- Run | Yrd Mat Sub Mat Fac Fac Matter Collected 2372 | 302 261 750 408 274 377 Remotely . | . . . . . . Salvage Created 2414 | 100 561 616 421 403 313 Parts 145 | 8 25 42 31 27 12 Haulers Intercepted 2 | . 2 . . . . Recyclers Shooed 2 | . . . 1 . 1 Parts Field Recycled . | . . . . . . Retrieved Matter . | . . . . . . Parts Self-Destructed 18 | . . 18 . . . Prevented . | . . . . . . Parts Restored . | . . . . . . Kills | -11 -10 -10 -8 -7 -6 ------- Run | Yrd Mat Sub Mat Fac Fac Combat Hostiles Destroyed 54 | . 8 18 13 8 7 Melee 3 | . . 3 . . . Guns 33 | . 8 10 6 6 3 Cannons 3 | . . 3 . . . AOE 15 | . . 2 7 2 4 Classes Destroyed 14 | 2 4 2 1 5 . Worker 2 | . . . . 2 . Builder 2 | . . . . 2 . Tunneler 1 | 1 . . . . . Hauler 2 | . 2 . . . . Recycler 5 | 1 2 . 1 . 1 Operator 1 | . . . . 1 . Watcher 1 | . 1 . . . . Swarmer 17 | . 2 4 7 . 4 Grunt 15 | . 6 . 3 6 . Sentry 3 | . . . 3 . . Hunter 3 | . . . . 1 2 Programmer 2 | . . . . 1 1 Artisan 2 | . . 2 . . . Subdweller 14 | . . 14 . . . Best Kill Streak 5 | 2 5 4 4 5 5 Combat Bots Only 4 | . 2 4 4 4 4 Max Kills in Single Turn 3 | 1 1 2 2 3 2 Gunslinging 1 | . . 1 . . . Exploded 2 | . . 1 2 1 2 Melee 1 | . . 1 . . . Uniques/NPCs Destroyed . | . . . . . . Combat | -11 -10 -10 -8 -7 -6 -------- Run | Yrd Mat Sub Mat Fac Fac Hostile Shots Fired 263 | . 20 110 33 34 66 Missed 86 | . 10 28 14 10 24 Hits 177 | . 10 82 19 24 42 Projectile 177 | . 10 82 19 24 42 AOE 1 | . . 1 . . . Critical Strikes 6 | . . 4 1 1 . Damage Taken 2807 | . 88 1470 210 536 503 Core 357 | . . 231 26 37 63 Absorbed by Shields . | . . . . . . Redirected to Shielding 14 | . . 9 5 . . Ignored by Resistances 754 | . 26 377 62 146 143 Core Remaining (%) 74 | 100 . 7 95 94 . Volleys Fired 169 | 2 30 57 26 31 23 Largest 2 | 2 2 2 2 2 2 Hottest 160 | 40 40 160 60 72 120 Shots Fired 301 | 4 60 103 42 51 41 Gun 265 | 4 60 80 38 47 36 Cannon 17 | . . 16 . 1 . Launcher 17 | . . 5 4 3 5 Special 2 | . . 2 . . . Kinetic 258 | 4 60 85 32 47 30 Thermal 19 | . . 18 . 1 . Explosive 12 | . . . 4 3 5 Electromagnetic 12 | . . . 6 . 6 Robot Hit Streak 32 | 3 10 28 12 32 10 Robot Miss Streak 4 | . 2 4 3 2 2 Penetration Max 1 | . . . . 1 1 Secondary Targets 2 | . . 2 . . . Max Gunslinging Chain 1 | . . 1 . . . Shots Hit Robots 237 | 3 44 97 33 36 24 Core Hits 124 | 3 22 38 20 25 16 Critical Kills . | . . . . . . Critical Parts Destroyed . | . . . . . . Critical Strikes 1 | . . . . . 1 Corrupt 1 | . . . . . 1 Melee Attacks 48 | . . 45 . . 3 Impact . | . . . . . . Slashing 45 | . . 45 . . . Piercing 3 | . . . . . 3 Sneak Attacks 1 | . . 1 . . . Combat Hostiles . | . . . . . . Follow-up Attacks . | . . . . . . Damage Inflicted 5684 | 41 499 2057 903 1211 973 Guns 3335 | 41 499 1049 543 698 505 Cannons 208 | . . 208 . . . Explosions 1504 | . . 163 360 513 468 Melee 637 | . . 637 . . . Ramming . | . . . . . . Kinetic 3268 | 41 499 1212 461 698 357 Thermal 233 | . . 208 25 . . Explosive 1316 | . . . 335 513 468 Electromagnetic 230 | . . . 82 . 148 Impact . | . . . . . . Slashing 637 | . . 637 . . . Piercing . | . . . . . . Highest Corruption 1 | . . . . 1 . Average Corruption 1 | . . . . 1 . Corruption Purged . | . . . . . . Corruption Blocked . | . . . . . . Effects 10 | . . . . 10 . Message Errors 1 | . . . . 1 . Matter Fused 1 | . . . . 1 . Heat Flow Errors 1 | . . . . 1 . Energy Discharges 4 | . . . . 4 . Data Loss (minor) 1 | . . . . 1 . Data Loss (major) 1 | . . . . 1 . Alerts 1 | . . . . 1 . Overload Shots . | . . . . . . Overflow Damage 37 | . . 9 10 3 15 Projectiles . | . . . . . . Explosions 28 | . . . 10 3 15 Melee 9 | . . 9 . . . Knockbacks . | . . . . . . Impact . | . . . . . . Kinetic . | . . . . . . Secondary . | . . . . . . Self-Inflicted Damage 14 | . . . 14 . . Shots 1 | . . . 1 . . Rammed . | . . . . . . Targets Rammed . | . . . . . . Kicked . | . . . . . . Crushed . | . . . . . . Highest Temperature 382 | . 2 382 117 248 225 Average Temperature 73 | . 2 182 29 72 74 Received Heat Transfer 1320 | . 60 1038 72 126 24 Effects 6 | . . 3 . 3 . Interference 6 | . . 3 . 3 . Siege Activations . | . . . . . . Martial Activations . | . . . . . . Shielding Activations . | . . . . . . Robots Disrupted . | . . . . . . Combat Hostiles . | . . . . . . Robots Corrupted 1 | . . . . . 1 Combat Hostiles . | . . . . . . Parts Fried 5 | . . . 1 . 4 Impact Corruptions . | . . . . . . Robots Melted . | . . . . . . Combat Hostiles . | . . . . . . Parts Melted 1 | . . 1 . . . Heat Transferred 494 | . . 444 50 . . Parts Sabotaged . | . . . . . . Parts Stolen . | . . . . . . Parts Stripped . | . . . . . . Power Chain Reactions 1 | . . . 1 . . Alert | -11 -10 -10 -8 -7 -6 ------- Run | Yrd Mat Sub Mat Fac Fac Maximum Alert Level 1 | . . . 1 . . Low Security (%) 98 | 100 100 . 93 100 100 Level 1 1 | . . . 6 . . Level 2 . | . . . . . . Level 3 . | . . . . . . Level 4 . | . . . . . . Level 5 . | . . . . . . High Security . | . . . . . . Max Security . | . . . . . . Peak Influence 253 | 5 50 . 253 102 132 Initial 94 | . . . . 94 . Average 45 | 1 17 . 98 45 40 Influence Increases 1255 | 10 225 140 403 276 201 Destroy 0b10 Robot/C 800 | . 160 80 260 160 140 Destroy 0b10 Robot/NC 70 | 10 25 . 5 25 5 Destroy Leader 166 | . 36 . 60 40 30 Successful Hack 49 | . 3 . 16 30 . Disable Machine 45 | . . . 18 9 18 Destroy Structure 50 | . 1 . 29 12 8 Partial Spotted 15 | . . . 15 . . Lose Combat Pursuer 60 | . . 60 . . . Influence Decreases 1173 | 10 218 147 160 519 119 Entered New Map 153 | . . 4 . 149 . Time Decay 970 | 10 218 133 160 350 99 Lost Part 50 | . . 10 . 20 20 Squads Dispatched 13 | . 2 . 1 4 6 Investigation 7 | . 2 . . 2 3 Extermination 2 | . . . . 1 1 Reinforcement 4 | . . . 1 1 2 Assault . | . . . . . . Garrison . | . . . . . . Intercept . | . . . . . . Searches Triggered . | . . . . . . Construction Impeded 1 | . . . . . 1 Haulers Reinforced . | . . . . . . Active Scanning Responses . | . . . . . . Cargo Convoy Interrupts . | . . . . . . Stealth | -11 -10 -10 -8 -7 -6 --------- Run | Yrd Mat Sub Mat Fac Fac Distress Signals . | . . . . . . Communications Jammed . | . . . . . . Distress Signals . | . . . . . . Times Spotted 67 | . 10 23 14 10 10 Peak Tracking Total 5 | . 2 5 4 3 4 Tactical Retreats 4 | . . 4 . . . Traps | -11 -10 -10 -8 -7 -6 ------- Run | Yrd Mat Sub Mat Fac Fac Traps Triggered 8 | . 1 3 . 3 1 Indirectly . | . . . . . . Trap Hack Attempts . | . . . . . . Triggered . | . . . . . . Disarmed . | . . . . . . Reprogrammed . | . . . . . . Reused . | . . . . . . Traps Extracted . | . . . . . . Installed 1 | . . 1 . . . Triggered . | . . . . . . Machines | -11 -10 -10 -8 -7 -6 ---------- Run | Yrd Mat Sub Mat Fac Fac Machines Disabled 7 | . 1 1 2 1 2 Max in Single Turn 1 | . 1 1 1 1 1 Machines Repaired . | . . . . . . Machines Dismantled . | . . . . . . Machines Sabotaged . | . . . . . . Overloaded Fab Kills . | . . . . . . Hacking | -11 -10 -10 -8 -7 -6 --------- Run | Yrd Mat Sub Mat Fac Fac Machines Accessed 21 | . 5 1 4 7 4 Terminals 16 | . 4 . 3 6 3 Fabricators . | . . . . . . Repair Stations . | . . . . . . Recycling Units 1 | . 1 . . . . Scanalyzers 3 | . . . 1 1 1 Garrison Access . | . . . . . . Total Hacks 40 | . 7 1 9 14 9 Successful 20 | . 3 1 5 8 3 Failed 19 | . 4 . 4 6 5 Catastrophic 5 | . 2 . . . 3 Database Lockouts 1 | . . . . . 1 Manual 8 | . 6 . . 1 1 Terminals 31 | . 6 . 7 12 6 Fabricators . | . . . . . . Repair Stations . | . . . . . . Recycling Units 1 | . 1 . . . . Scanalyzers 7 | . . . 2 2 3 Garrison Access . | . . . . . . Terminal Hacks 15 | . 2 1 4 7 1 Robot Analysis 1 | . 1 . . . . Prototype ID Bank 1 | . . . . 1 . Open Door 1 | . . 1 . . . Open DSF 1 | . . . . 1 . Branch Access Points 2 | . . . 1 1 . Emergency Access Points 2 | . . . 1 1 . Alert Level 2 | . 1 . . . 1 Locate Traps 1 | . . . 1 . . Maintenance Status 1 | . . . . 1 . Hauler Manifests 1 | . . . . 1 . Zone Layout 2 | . . . 1 1 . Fabricator Hacks . | . . . . . . Repair Station Hacks . | . . . . . . Recycling Unit Hacks . | . . . . . . Scanalyzer 3 | . . . 1 . 2 Retrieve Study 3 | . . . 1 . 2 Garrison Access Hacks . | . . . . . . Unauthorized Hacks 1 | . . . . 1 . Terminals 1 | . . . . 1 . Track 1 | . . . . 1 . Fabricators . | . . . . . . Repair Stations . | . . . . . . Recycling Units . | . . . . . . Scanalyzers . | . . . . . . Garrison Access . | . . . . . . Data Cores Recovered . | . . . . . . Used . | . . . . . . Hacking Detections 18 | . 4 . 4 6 4 Full Trace Events 4 | . 1 . . 1 2 Feedback Events . | . . . . . . Feedback Blocked . | . . . . . . Robot Schematics Acquired . | . . . . . . Robots Built . | . . . . . . Authchips . | . . . . . . Time . | . . . . . . Total Robot Build Rating . | . . . . . . Part Schematics Acquired . | . . . . . . Parts Built . | . . . . . . Authchips . | . . . . . . Time . | . . . . . . Total Part Build Rating . | . . . . . . Part Studies Acquired 3 | . . . 1 . 2 Parts Repaired . | . . . . . . Time . | . . . . . . Parts Recycled . | . . . . . . Recycled Matter . | . . . . . . Retrieved Matter . | . . . . . . Retrieved Components . | . . . . . . Parts Scanalyzed . | . . . . . . Part Schematics Acquired . | . . . . . . Parts Damaged . | . . . . . . Bothacking | -11 -10 -10 -8 -7 -6 ------------ Run | Yrd Mat Sub Mat Fac Fac Used RIF Installer . | . . . . . . Robots Hacked . | . . . . . . Non-combat . | . . . . . . Combat . | . . . . . . Robot Hacks Applied . | . . . . . . Relay Couplers Released . | . . . . . . Fabnet Peak Effective % . | . . . . . . Robots Rewired . | . . . . . . Allies Hacked . | . . . . . . Hacks Repelled . | . . . . . . Allies | -11 -10 -10 -8 -7 -6 -------- Run | Yrd Mat Sub Mat Fac Fac Total Allies . | . . . . . . Largest Group . | . . . . . . Highest-Rated Group . | . . . . . . Highest-Rated Ally . | . . . . . . Total Orders . | . . . . . . Ally Attacks . | . . . . . . Total Damage . | . . . . . . Kills . | . . . . . . Allies Corrupted . | . . . . . . Allies Melted . | . . . . . . Intel | -11 -10 -10 -8 -7 -6 ------- Run | Yrd Mat Sub Mat Fac Fac Active Infowar (turns) 2589 | 33 574 1403 . 144 435 Optics 1455 | . . 1403 . 52 . Sensors 433 | . . . . . 433 Terrain 543 | . . . . 120 423 Seismic 607 | 33 574 . . . . Robot Analysis Total 1 | . 1 . . . . Derelict Logs Recovered 1 | . . 1 . . . Drone Launches . | . . . . . . Drone Recoveries . | . . . . . . Exploration | -11 -10 -10 -8 -7 -6 ------------- Run | Yrd Mat Sub Mat Fac Fac Turns Passed 4937 | 81 603 2671 423 724 435 Spaces Moved 3213 | 42 300 1781 295 511 284 Core 19 | 12 . 7 . . . Treads 416 | 25 300 91 . . . Legs 2564 | 5 . 1469 295 511 284 Wheels 214 | . . 214 . . . Hover . | . . . . . . Flight . | . . . . . . Fastest Speed 50 | 50 160 120 90 90 113 Average Speed 127 | 147 160 131 113 109 114 Slowest Speed 550 | 200 160 550 180 113 115 Overloaded Moves . | . . . . . . Propulsion Burnouts . | . . . . . . Robots Hopped . | . . . . . . Potential Cave-ins . | . . . . . . Cave-ins Triggered . | . . . . . . Exploration Rate (%) 35 | 3 66 95 27 15 9 Regions Visited 5 Branch Regions 1 Pre-discovered Areas 1 | . . 1 . . . Known Exits Taken . | . . . . . . Unknown Exits Taken 5 | 1 1 1 1 1 . Scrap Searched 7 | . . 7 . . . Spaces Dug 10 | . . 10 . . . Terrain Destroyed 114 | . . 55 31 17 11 Melee 4 | . . 4 . . . Projectile 5 | . . . . 2 3 AOE 104 | . . 51 31 15 7 Terrain Rammed . | . . . . . . Walls Destroyed . | . . . . . . Machines Disabled . | . . . . . . Actions | -11 -10 -10 -8 -7 -6 --------- Run | Yrd Mat Sub Mat Fac Fac Total 3682 | 54 364 1941 355 622 346 Wait 88 | . 27 9 2 50 . Move 3208 | 41 299 1780 294 510 284 Hop . | . . . . . . Pick Up 28 | . 3 9 6 6 4 Fast Attach 49 | 9 1 14 7 9 9 Attach 12 | . . 4 2 2 4 Detach 6 | . . 3 . . 3 Swap 27 | . 1 9 5 6 6 Drop 45 | 2 3 10 13 7 10 Fire 169 | 2 30 57 26 31 23 Melee 48 | . . 45 . . 3 Ram . | . . . . . . Kick . | . . . . . . Crush . | . . . . . . Escape Stasis 1 | . . . . 1 . Rewire . | . . . . . . Trap 1 | . . 1 . . . Miscellaneous . | . . . . . . Route ------- -11/Scrapyard -10/Materials (discovered 4 exits: [*Mat] / [*Min x2] / *Sub) -10/Subcaves (discovered 3 exits: *Mat x2 / [*Rec]) -8/Materials -7/Factory (discovered 3 exits: *Fac / Low x2) -6/Factory History --------- Turn | Location | Event 17 | -11/Scrapyard | Discovered new exit (range 15) 82 | -11/Scrapyard | Entered Materials 275 | -10/Materials | Discovered new exit (range 3) 311 | -10/Materials | Build established: Mutant 362 | -10/Materials | Discovered new exit (range 6) 633 | -10/Materials | Discovered new exit (range 16) 674 | -10/Materials | Discovered new exit (range 9) 685 | -10/Materials | Entered Subcaves 821 | -10/Subcaves | A Subdweller sparked back to life 821 | -10/Subcaves | A Subdweller sparked back to life 821 | -10/Subcaves | A Subdweller sparked back to life 890 | -10/Subcaves | Found Prototype Leg 890 | -10/Subcaves | Identified Cargo Legs 892 | -10/Subcaves | Attached Cargo Legs, gained temporary slots: Utility x2 1166 | -10/Subcaves | Discovered new exit (range 15) 1397 | -10/Subcaves | Shifting Twisted Machinery released Barrage Gun 1398 | -10/Subcaves | Shifting Twisted Machinery released Sub. Power Source 1552 | -10/Subcaves | Disturbed a concealed Subdweller 1713 | -10/Subcaves | A swath of the cavern ceiling suddenly collapsed 1749 | -10/Subcaves | Core integrity fell below 50% 2006 | -10/Subcaves | Discovered new exit (range 10) 2174 | -10/Subcaves | Learned location of Zion (-7) 2174 | -10/Subcaves | Met a Zionite searching for "candidates" 2259 | -10/Subcaves | Learned 2 Materials zone layouts 2773 | -10/Subcaves | Visited 4L-MR0's lab 2786 | -10/Subcaves | Found Prototype Leg 3005 | -10/Subcaves | Ambushed by Subdwellers from Twisted Machinery 3025 | -10/Subcaves | Core integrity fell below 20% 3255 | -10/Subcaves | Shifting Twisted Machinery released Hvy. Riot Gun 3255 | -10/Subcaves | Discovered new exit (range 16) 3265 | -10/Subcaves | Shifting Twisted Machinery released Sub. Power Source 3356 | -10/Subcaves | Entered Materials 3356 | -8/Materials | Evolved 4 slots: Propulsion x2, Utility x2 3356 | -8/Materials | Identified Arachnoskeleton 3357 | -8/Materials | Attached Arachnoskeleton, gained temporary slots: Propulsion x3 3721 | -8/Materials | Discovered new exit (range 14) 3779 | -8/Materials | Entered Factory 3779 | -7/Factory | Evolved 2 slots: Utility x2 3847 | -7/Factory | Build established: Hacker-Mutant 4151 | -7/Factory | Identified exit to Lower Caves 4374 | -7/Factory | Discovered new exit (range 12) 4503 | -7/Factory | Entered another Factory area 4503 | -6/Factory | Evolved 2 slots: Power x1, Utility x1 4784 | -6/Factory | Build established: Skirmisher 4896 | -6/Factory | Central database locked down 4925 | -6/Factory | Spotted B-75 Beast 4938 | -6/Factory | Self-destructed Last Messages --------------- 04896_ ALERT: Central database lockdown, local access denied. 04905_ Dropped Terrain Scanner. 04906_ Acquired Imp. Terrain Scanner. 04915_ U-05 Engineer lays Concrete. 04924_ Slug penetrates H-66 Slayer. 04925_ U-05 Engineer lays Concrete. 04927_ K-01 Serf collects debris. 04927_ Imp. Terrain Scanner destroyed. 04927_ U-05 Engineer lays Concrete. 04929_ Slug penetrates Wall. 04930_ U-05 Engineer builds a Wall. 04930_ U-05 Engineer lays Concrete. 04930_ Slug penetrates Wall. 04931_ U-05 Engineer lays Concrete. 04934_ K-01 Serf collects debris. 04934_ U-05 Engineer builds a Wall. 04934_ U-05 Engineer lays Concrete. 04937_ Med. Armor Plating destroyed. 04937_ U-05 Engineer lays Concrete. 04938_ U-05 Engineer builds a Wall. Map ----- +----------------------------------------------------+ | | | | | ##############?????##?????????????????????????? | | ## #??#?#?#?#?????#??#??????????????? | | ## #?######?##??#???#??#????????????? | | ?# !! #?#############????#?????????????? | | ?# !! """ ##?##] #?#???##???????????? | | ## """ ##### ! "" !#???#???????#??????? | | # """ # #* "" #?#?##????#????????? | | # #?#?# """ #????#?????????????? | | ###+####/######## "" """ #??#???#???????????? | | + + ##### S"" """ ###????????????????? | | ### ### #?### "" #????????##???#????? | | ### ### #?#?# o /! #???#??????????????? | | # # !! #########/#####?##??##?#?????????? | | # # !// # ###?##??#???????????? | | + " + !// # ###??????###????????? | | # # # """ """ ##??????#?????#?????? | | # # ; "%" T" #???#?##?????#??????? | | ## ##! [ * % """ #######?????????????? | | ## ## # u " #????????##?#???????? | | ## ##! #u #?##?####????##?????? | | ## ## #! #?#????#????????????? | | ## #######[= % ##?#?#?????#????????? | | ## ###[ # ?? ?""??????#?????? | | + %% @# ?????????????????? | | ### = % #? ???????? ????????? | | ####### * = # ? ???????????????? | | ##?### * % #??"?????????#??????? | | ######! # "????????????????? | | ] + ??????????????????? | | [ """""" #????? ?????????????? | | !=[ """""" #? ""???????????????? | | ! """""" #???"????? ?????????? | | != """""" #???????????????????? | | """""" ?? ?????????????????? | | """""" #????????#??????????? | | """"?" ! ]! #???????????????????? | | """ """??? ! ?????#?#????????????? | | """ """"?????? ????????????????????? | | """ ???????? ? BB????????????????????? | | """"????????????????????????????????? | | """"????????????????????????????????? | | ""??????????????????????????????????? | | ##### ""??????????????????????????????????? | | ?#? "???????????????????????????????????? | | ????? "???????????????????????????????????? | | ????? ??????????????????????????????????????? | | ??????????????????????????????????????????????? | | ??????????????????????????????????????????????? | +----------------------------------------------------+ Best States ------------- Heat Dissipation 37 Coolant Potential 100 Energy Generation 33 Energy Capacity 300 Matter Stores 300 Matter Capacity 300 Sight Range 21 Robot Scan Range 16 Terrain Scan Range 16 Terrain Scan Density 110 Armor Coverage 800 Resistance: KI 20 Resistance: TH 20 Resistance: EX 45 Resistance: EM 20 Resistance: I 20 Resistance: S 20 Resistance: P 20 Core Shielding 20 Evasion (%) 57 Targeting Accuracy 10 Recoil Reduction 2 Matter Filtering 30 Particle Charging 15 Offensive Hacking 20 Item Schematics ----------------- None Robot Schematics ------------------ None Fabricated ------------ Nothing Repaired ---------- Nothing Studied --------- Nuclear Core | -8/Materials | Hacked Gauss Rifle | -6/Factory | Hacked Lgt. Fission Core | -6/Factory | Hacked Alien Tech Used ----------------- None Achievements -------------- Art Critic Sprinter Challenges ------------ None Game ------ Seed DeuteriumIntegrityPrototype Manual? 0 Play Time 00:42:34 Cumulative 103.1 hours Start 2025.11.11 @ 21:14:35 End 2025.11.12 @ 20:34:37 Sessions 6 Manual Loads 0 Difficulty Adventurer Special Mode None Game No. 79 Rogue 28 Adventurer 51 Explorer 0 Win Type - Total 4 Types 3/0/0/1/0/0/0/0/0/0 Lore% 55 Gallery% 61 Achievement% 42 Wizard Run 0 Options --------- Layout 0 ASCII 1 Keyboard 0 Movement Mouse Keybinds 0 Fullscreen 1 Font 18/VGA_Max Map View 76x50 Zoom Use 14% Tactical HUD 1 Map Filters NONE Filters NONE Steam 1 RUN: 1cf24f7b-9172-455e-88c3-ec17e1ef0ac3